Workbook

Sheet Лист1
A1: Школа | C1: ГБОУ "Корсабашская школа-интернат" | F1: Согласовал: | G1: должность | H1: директор школы
A2: Типовое примерное меню приготавливаемых блюд | G2: фамилия | H2: Шарипов А.Н.
A3: Возрастная категория | E3: 7-11 лет | G3: дата | H3: 2 | I3: 9 | J3: 2024
H4: день | I4: месяц | J4: год
A5: Неделя | B5: День недели | C5: Прием пищи | D5: Раздел меню | E5: Блюда | F5: Вес блюда, г | G5: Белки | H5: Жиры | I5: Углеводы | J5: Калорийность | K5: № рецептуры | L5: Цена
A6: 1 | B6: 1 | C6: Завтрак | D6: закуска | E6: Салат из свежей капусты | F6: 60 | G6: 0.937 | H6: 2.05 | I6: 4.642 | J6: 59.36 | K6: 79 | L6: 5.98
D7: 2 блюдо | E7: Котлеты из говядины с соусом | F7: 90 | G7: 10.196 | H7: 13.327 | I7: 16.739 | J7: 203.114 | K7: 608:759 | L7: 32.73
D8: гарнир | E8: Каша гречневая рассыпчатая со слив маслом | F8: 156 | G8: 6.486 | H8: 5.676 | I8: 34.764 | J8: 207.51 | K8: 378 | L8: 12.25
D9: напиток | E9: Компот из урюка и яблок | F9: 200 | G9: 1.01 | H9: 0.028 | I9: 5.25 | J9: 24.75 | K9: 393 | L9: 3.90
D10: хлеб | E10: хлеб сельский | F10: 40 | G10: 1.32 | H10: 0.48 | I10: 19.16 | J10: 94.8 | L10: 2.48
D12: итого | F12: =F10+F9+F8+F7+F6 -> 546 | G12: =G6+G7+G8+G9+G10 -> 19.949 | H12: =H6+H7+H8+H9+H10 -> 21.561 | I12: =I10+I9+I8+I7+I6 -> 80.555 | J12: =J6+J7+J8+J9+J10 -> 589.534 | K12: 0 | L12: =L10+L9+L8+L7+L6 -> 57.344
A13: 1 | B13: 1 | C13: Завтрак 2 | D13: гор.блюдо | E13: Каша вязкая молочная "Дружба" со слив маслом | F13: 130 | G13: 4,1 | H13: 4,555 | I13: 25,372 | J13: 156,76 | K13: 384 | L13: 9,512
D14: гор.напиток | E14: Чай с сахаром | F14: 200 | G14: 0 | H14: 0 | I14: 8 | J14: 32 | K14: 959 | L14: 1,36
D15: хлеб | E15: хлеб пшеничный | F15: 40 | G15: 3,04 | H15: 0,32 | I15: 19,68 | J15: 94 | L15: 2,48
D16: итого | F16: =F15+F14+F13 -> 370 | G16: =G13+G14+G15 -> 7.14 | H16: =H15+H14+H13 -> 4.88 | I16: =I13+I14+I15 -> 53.05 | J16: =J13+J14+J15 -> 282.76 | K16: 0.00 | L16: =L15+L14+L13 -> 13.35
A17: =A6 -> 1 | B17: =B6 -> 1 | C17: Итого за день: | F17: =F12+F16 -> 916 | G17: =G16+G12 -> 27.09 | H17: =H16+H12 -> 26.44 | I17: =I16 -> 53.05 | J17: =J16+J12 -> 872.29 | K17: 0.00 | L17: =L16+L12 -> 70.70
A18: 1 | B18: 2 | C18: Завтрак | D18: закуска | E18: свекла отварная с маслом растительным | F18: 60 | G18: 0.984 | H18: 3.063 | I18: 1.773 | J18: 24.522 | K18: 34 | L18: 6.71
D19: 2 блюдо | E19: котлеты из мяса птицы с соусом | F19: 90 | G19: 6.5 | H19: 7.565 | I19: 11.447 | J19: 60.724 | K19: 667:759 | L19: 32.59
D20: гарнир | E20: картофельное пюре со слив маслом | F20: 155 | G20: 1,424 | H20: 2,092 | I20: 8.135 | J20: 59,212 | K20: 299 | L20: 14.50
D21: гор.напиток | E21: цикорий с молоком | F21: 200 | G21: 2.88 | H21: 1,204 | I21: 3 | J21: 46,6 | K21: 958 | L21: 8,3
D22: хлеб | E22: хлеб сельский | F22: 40 | G22: 1,32 | H22: 0.48 | I22: 19.16 | J22: 94.8 | L22: 2,48
D23: итого | F23: =SUM(F18:F22) -> 545 | G23: =SUM(G18:G22) -> 10.364 | H23: =SUM(H18:H22) -> 11.108 | I23: =SUM(I18:I22) -> 43.515 | J23: =SUM(J18:J22) -> 180.046 | K23: 0 | L23: =SUM(L18:L22) -> 53.804
A24: =A18 -> 1 | B24: =B18 -> 2 | C24: Завтрак 2 | D24: гор.блюдо | E24: Каша вязкая молочная из овсяной крупы со слив маслом | F24: 130 | G24: 5,285 | H24: 4,485 | I24: 24,629 | J24: 132,244 | K24: 384 | L24: 8,52
D25: гор.напиток | E25: чай с сахаром | F25: 200 | G25: 0 | H25: 0 | I25: 8 | J25: 32 | K25: 943 | L25: 1,36
D26: хлеб | E26: хлеб пшеничный | F26: 40 | G26: 3,04 | H26: 0,32 | I26: 19,68 | J26: 94 | L26: 2,48
D27: итого | F27: =F26+F25+F24 -> 370 | G27: =G26+G25+G24 -> 8.325 | H27: =H26+H25+H24 -> 4.805 | I27: 52.309 | J27: 258.244 | K27: 0 | L27: =SUM(L24:L26) -> 0
A28: =A18 -> 1 | B28: =B18 -> 2 | C28: Итого за день: | F28: =F23+F27 -> 915 | G28: =G23+G27 -> 18.689 | H28: =H23+H27 -> 15.913 | I28: =I23+I27 -> 95.824 | J28: =J23+J27 -> 438.29 | K28: 0 | L28: =L23+L27 -> 53.804
A29: 1 | B29: 3 | C29: Завтрак | D29: 1 блюдо | E29: Суп вермишелевый и с мясными фрикадельками | F29: 250 | G29: 10.948 | H29: 12.104 | I29: 23.024 | J29: 246.382 | K29: 124:179 | L29: 32.78
D31: гор.напиток | E31: чай с сахаром | F31: 200 | G31: 0 | H31: 0 | I31: 8 | J31: 32 | K31: 943 | L31: 1,222
D32: хлеб черн. | E32: хлеб сельский | F32: 40 | G32: 1.32 | H32: 0.48 | I32: 19.16 | J32: 94.8 | L32: 2.48
D33: конд.изд. | E33: Булочка домашняя | F33: 50 | G33: 2.751 | H33: 9.36 | I33: 11.214 | J33: 133.717 | K33: 144 | L33: 7.80
D34: итого | F34: =F33+F32+F31+F29 -> 540 | G34: =G33+G32+G31+G29 -> 15.019 | H34: 21.944 | I34: 61.398 | J34: 506.899 | K34: 0 | L34: =L33+L32+L31+L29 -> 44.284
A35: =A29 -> 1 | B35: =B29 -> 3 | C35: Завтрак 2 | D35: гор.блюдо | E35: Каша вязкая молочная из гречневой крупы | F35: 160 | G35: 7,065 | H35: 10,785 | I35: 29,4 | J35: 236,775 | K35: 384 | L35: 19,522
D36: гор.напиток | E36: чай с сахаром | F36: 200 | G36: 0 | H36: 0 | I36: 8 | J36: 32 | K36: 943 | L36: 1,36
D37: хлеб | E37: Хлеб пшеничный | F37: 40 | G37: 3,04 | H37: 0,32 | I37: 19,68 | J37: 94 | L37: 2,48
D38: итого | F38: =F37+F36+F35 -> 400 | G38: =G37+G36+G35 -> 10 | H38: 11 | I38: 57 | J38: 363 | K38: 0 | L38: =L37+L36+L35 -> 23.362
A39: =A29 -> 1 | B39: =B29 -> 3 | C39: Итого за день: | F39: =F34+F38 -> 940 | G39: =G34+G38 -> 25.124 | H39: =H34+H38 -> 33.049 | I39: =I34+I38 -> 118.478 | J39: =J34+J38 -> 869.674 | K39: 0 | L39: =L38+L34 -> 67.646
A40: 1 | B40: 4 | C40: Завтрак | D40: 2 блюдо | E40: биточки из говядины с соусом | F40: 90 | G40: 6.576 | H40: 6.879 | I40: 7.965 | J40: 115.61 | K40: 621:759 | L40: 31.89
D41: гарнир | E41: макароны отварные со слив маслом | F41: 155 | G41: 2,35 | H41: 2,55 | I41: 18,55 | J41: 85,86 | K41: 414 | L41: 7.95
D42: сладкое | E42: чай с сахаром | F42: 200 | G42: 0 | H42: 0 | I42: 8 | J42: 32 | K42: 943 | L42: 1,36
D43: хлеб черн. | E43: хлеб сельский | F43: 40 | G43: 1,32 | H43: 0.48 | I43: 19,16 | J43: 94.8 | L43: 2.48
D44: итого | F44: =F43+F42+F41+F40 -> 485 | G44: =G43+G42+G41+G40 -> 10.2 | H44: 9.9 | I44: 53.7 | J44: 328.3 | K44: 0.0 | L44: 43.7
A45: =A40 -> 1 | B45: =B40 -> 4 | C45: Завтрак 2 | D45: гор.напиток | E45: чай с сахаром | F45: 200 | G45: 0 | H45: 0 | I45: 8 | J45: 32 | K45: 943 | L45: 1,36
D46: хлеб | E46: Бутерброд с маслом | F46: 60 | G46: 3,74 | H46: 5,1 | I46: 24,74 | J46: 145,5 | K46: 3 | L46: 12,6
D47: гор.блюдо | E47: Запеканка из творога | F47: 75 | G47: 5.419 | H47: 5.775 | I47: 15.042 | J47: 112.104 | K47: 469 | L47: 30.95
D48: итого | F48: =F45+F46+F47 -> 335.0 | G48: =G45+G46+G47 -> 9.2 | H48: 10.9 | I48: 47.8 | J48: 289.6 | K48: 0.0 | L48: 44.9
A49: =A40 -> 1 | B49: =B40 -> 4 | C49: Итого за день: | F49: =F48+F44 -> 820 | G49: =G44+G48 -> 19.405 | H49: =H44+H48 -> 20.784 | I49: =I44+I48 -> 101.457 | J49: =J44+J48 -> 617.874 | K49: 0 | L49: =L44+L48 -> 88.592
A50: 1 | B50: 5 | C50: Завтрак | D50: закуска | E50: Салат из свеклы | F50: 60 | G50: 0,723 | H50: 3,104 | I50: 6.924 | J50: 58,895 | K50: 36 | L50: 7,172
D51: 2 блюдо | E51: Котлеты из рыбы с соусом | F51: 90 | G51: 10.312 | H51: 10.997 | I51: 12.239 | J51: 182.984 | K51: 510:759 | L51: 31.51
D52: гарнир | E52: Картофельное пюре со сливочным маслом | F52: 153 | G52: 1.424 | H52: 2.092 | I52: 8.135 | J52: 59.212 | K52: 299 | L52: 14.50
D53: сладкое | E53: чай с сахаром | F53: 200 | G53: 0 | H53: 0 | I53: 8 | J53: 32 | K53: 943 | L53: 1,222
D54: хлеб черн. | E54: хлеб сельский | F54: 40 | G54: 1.32 | H54: 0.48 | I54: 19.16 | J54: 94.8 | L54: 2.48
D55: итого | F55: =F50+F51+F52+F53+F54 -> 543 | G55: =G50+G51+G52+G53+G54 -> 14 | H55: 17 | I55: 54 | J55: 428 | K55: 0 | L55: 57
A56: =A50 -> 1 | B56: =B50 -> 5 | C56: Завтрак 2 | D56: гор.блюдо | E56: Каша вязкая молочная из пшенной крупы со сливочным маслом | F56: 130 | G56: 5,61 | H56: 5,038 | I56: 28,385 | J56: 175,81 | K56: 384 | L56: 8,682
D57: гор.напиток | E57: чай с сахаром | F57: 200 | G57: 0 | H57: 0 | I57: 8 | J57: 32 | K57: 943 | L57: 1,36
D58: хлеб | E58: хлеб пшеничный | F58: 40 | G58: 3,04 | H58: 0,32 | I58: 19,68 | J58: 94 | L58: 2,48
D59: итого | F59: =F58+F57+F56 -> 370 | G59: =G58+G57+G56 -> 9 | H59: 5 | I59: 56 | J59: 302 | K59: 0 | L59: 13
A60: =A50 -> 1 | B60: =B50 -> 5 | C60: Итого за день: | F60: =F59+F55 -> 913 | G60: =G59+G55 -> 22 | H60: 22 | I60: 111 | J60: 730 | K60: 0 | L60: 69
A61: 1 | B61: 6 | C61: Завтрак | D61: фрукты | E61: яблоко | F61: 85 | G61: 0.299 | H61: 0.299 | I61: 7.33 | J61: 35.156 | L61: 11.05
D62: 2 блюдо | E62: голубцы ленивые | F62: 150 | G62: 16.324 | H62: 18.47 | I62: 45.758 | J62: 378.02 | K62: 636 | L62: 37.44
D63: гор.напиток | E63: чай с сахаром | F63: 200 | G63: 0 | H63: 0 | I63: 8 | J63: 32 | K63: 943 | L63: 1.36
D64: хлеб бел. | E64: хлеб пшеничный | F64: 40 | G64: 3.04 | H64: 0.32 | I64: 19.68 | J64: 94 | L64: 2.48
D65: конд.изд. | E65: пряники "Мятные" | F65: 30 | G65: 1.05 | H65: 0.36 | I65: 21.9 | J65: 92.7 | L65: 4.50
D68: итого | F68: =F61+F62+F63+F64+F65 -> 505 | G68: =G61+G62+G63+G64+G65 -> 20.713 | H68: 19.449 | I68: 102.668 | J68: 631.876 | K68: 0 | L68: 56.832
A69: 1 | B69: =B61 -> 6 | C69: Завтрак 2 | D69: закуска
D70: 1 блюдо
D71: 2 блюдо
D72: гарнир
D73: напиток
D74: хлеб бел.
D75: хлеб черн.
D78: итого | F78: =SUM(F69:F77) -> 0 | G78: =SUM(G69:G77) -> 0 | H78: 0 | I78: 0 | J78: 0 | L78: =SUM(L69:L77) -> 0
A79: =A61 -> 1 | B79: =B61 -> 6 | C79: Итого за день: | F79: =F68+F78 -> 505 | G79: =G68+G78 -> 20.713 | H79: 19.449 | I79: 102.668 | J79: 631.876 | L79: =L68+L78 -> 56.832
A80: 2 | B80: 1 | C80: Завтрак | D80: закуска | E80: Салат витаминный | F80: 60 | G80: 0,827 | H80: 1,062 | I80: 4,34 | J80: 9,205 | K80: 82 | L80: 6,516
D81: 2 блюдо | E81: котлеты из мяса птицы с соусом | F81: 90 | G81: 6.5 | H81: 7.565 | I81: 11.447 | J81: 60.724 | K81: 667:759 | L81: 32.59
D82: гарнир | E82: Каша гречневая рассыпчатая со сливочным маслом | F82: 156 | G82: 6.486 | H82: 5.676 | I82: 34.764 | J82: 207.51 | K82: 378 | L82: 12.25
D83: сладкое | E83: Компот из урюка и яблок | F83: 200 | G83: 1.01 | H83: 0.028 | I83: 5.25 | J83: 24.75 | K83: 393 | L83: 3.90
D84: хлеб черн. | E84: хлеб сельский | F84: 40 | G84: 1.32 | H84: 0.48 | I84: 19.16 | J84: 94.8 | L84: 2.48
D85: итого | F85: =F84+F83+F82+F81+F80 -> 546 | G85: =G84+G83+G82+G81+G80 -> 16 | H85: 15 | I85: 75 | J85: 397 | K85: 0 | L85: 58
A86: =A80 -> 2 | B86: =B80 -> 1 | C86: Завтрак 2 | D86: гор.блюдо | E86: Каша молочная из манной крупы со сливочным маслом | F86: 130 | G86: 4.9 | H86: 4.385 | I86: 27.032 | J86: 168.76 | K86: 384 | L86: 8.51
D87: гор.напиток | E87: Чай с сахаром | F87: 200 | G87: 0 | H87: 0 | I87: 8 | J87: 32 | K87: 943 | L87: 1.36
D88: хлеб | E88: Хлеб пшеничный | F88: 40 | G88: 3.04 | H88: 0.32 | I88: 19.68 | J88: 94 | L88: 2.48
D89: итого | F89: =F88+F87+F86 -> 370 | G89: =G88+G87+G86 -> 7.94 | H89: 4.705 | I89: 54.712 | J89: 294.76 | K89: 0 | L89: 12.347
A90: =A80 -> 2 | B90: =B80 -> 1 | C90: Итого за день: | F90: =F89+F85 -> 916 | G90: =G89+G85 -> 24 | H90: 20 | I90: 130 | J90: 692 | K90: 0 | L90: 70
A91: 2 | B91: 2 | C91: Завтрак | D91: 1 блюдо | E91: Уха с крупой | F91: 250 | G91: 9,06 | H91: 7,038 | I91: 15,221 | J91: 103,007 | K91: 182 | L91: 35,062
D92: сладкое | E92: Какао с молоком | F92: 200 | G92: 1.046 | H92: 1.856 | I92: 6.12 | J92: 99.07 | K92: 959 | L92: 8.96
D93: хлеб черн. | E93: Хлеб сельский | F93: 40 | G93: 1.32 | H93: 0.48 | I93: 19.16 | J93: 94.8 | L93: 2.48
D94: конд.изд. | E94: Булочка домашняя | F94: 50 | G94: 2.751 | H94: 9.36 | I94: 11.214 | J94: 133.717 | K94: 144 | L94: 7.80
D95: итого | F95: =F94+F93+F92+F91 -> 540 | G95: =G94+G93+G92+G91 -> 14 | H95: 19 | I95: 52 | J95: 431 | K95: 0 | L95: 54
A96: =A91 -> 2 | B96: =B91 -> 2 | C96: Завтрак 2 | D96: гор.блюдо | E96: Каша вязкая молочная из рисовой крупы со сливочным маслом | F96: 130 | G96: 3.74 | H96: 4.385 | I96: 27.322 | J96: 144.413 | K96: 384 | L96: 10.39
D97: гор.напиток | E97: Чай с сахаром | F97: 200 | G97: 0 | H97: 0 | I97: 8 | J97: 32 | K97: 943 | L97: 1.22
D98: хлеб | E98: Хлеб пшеничный | F98: 40 | G98: 3,04 | H98: 0,32 | I98: 19,68 | J98: 94 | L98: 2,48
D99: итого | F99: =F98+F97+F96 -> 370 | G99: =G98+G97+G96 -> 6.78 | H99: 4.705 | I99: 55.002 | J99: 270.413 | K99: 0 | L99: 14.094
A100: =A91 -> 2 | B100: =B91 -> 2 | C100: Итого за день: | F100: =F99+F95 -> 910 | G100: =G99+G95 -> 20.957 | H100: 23.439 | I100: 106.717 | J100: 701.007 | K100: 0 | L100: 68.395
A101: 2 | B101: 3 | C101: Завтрак | D101: 2 блюдо | E101: Котлеты из говядины с соусом | F101: 90 | G101: 7,275 | H101: 6,434 | I101: 12,295 | J101: 85,14 | K101: 608:759 | L101: 32,734
D102: гарнир | E102: макароны отварные со сливочным маслом | F102: 155 | G102: 2,35 | H102: 2.55 | I102: 18.55 | J102: 85.86 | K102: 414 | L102: 7.95
D103: сладкое | E103: чай с сахаром | F103: 200 | G103: 0 | H103: 0 | I103: 8 | J103: 32 | K103: 867 | L103: 1.36
D104: хлеб черн. | E104: хлеб сельский | F104: 40 | G104: 1,32 | H104: 0.48 | I104: 19.16 | J104: 94.8 | L104: 2.48
D105: итого | F105: =F104+F103+F102+F101 -> 485 | G105: =G104+G103+G102+G101 -> 11 | H105: 9 | I105: 58 | J105: 298 | K105: 0 | L105: 45
A106: =A101 -> 2 | B106: =B101 -> 3 | C106: Завтрак 2 | D106: гор. блюдо | E106: омлет натуральный | F106: 130 | G106: 12.229 | H106: 21.629 | I106: 2.573 | J106: 253.85 | K106: 340 | L106: 49.45
D107: гор.напиток | E107: Чай с сахаром | F107: 200 | G107: 0 | H107: 0 | I107: 8 | J107: 32 | K107: 943 | L107: 1.36
D108: хлеб | E108: хлеб пшеничный | F108: 40 | G108: 3,04 | H108: 0.32 | I108: 19.68 | J108: 94 | L108: 2.48
D109: итого | F109: =F108+F107+F106 -> 370 | G109: =G108+G107+G106 -> 15.269 | H109: 21.949 | I109: 30.253 | J109: 379.85 | K109: 0 | L109: 53.29
A110: =A101 -> 2 | B110: =B101 -> 3 | C110: Итого за день: | F110: =F109+F105 -> 855 | G110: =G109+G105 -> 26 | H110: 31 | I110: 88 | J110: 678 | K110: 0 | L110: 98
A111: 2 | B111: 4 | C111: Завтрак | D111: 1 блюдо | E111: борщ с капустой и картофелем с фрикадельками из мяса птицы | F111: 250 | G111: 14,275 | H111: 14,1 | I111: 24,192 | J111: 144,27 | K111: 170/179 | L111: 38,939
D112: гор.напиток | E112: чай с сахаром | F112: 200 | G112: 0 | H112: 0 | I112: 8 | J112: 32 | K112: 943 | L112: 1,36
D113: хлеб | E113: хлеб сельский | F113: 40 | G113: 1,32 | H113: 0,48 | I113: 19,16 | J113: 94,8 | L113: 2,48
D114: сладкое | E114: Печенье "Нарезное" 25гр. | F114: 25 | G114: 0,875 | H114: 0,3 | I114: 18,25 | J114: 77,25 | L114: 4,375
D115: итого | F115: =F111+F112+F113+F114 -> 515 | G115: =G111+G112+G113+G114 -> 16 | H115: 15 | I115: 70 | J115: 348 | L115: 47
A116: =A111 -> 2 | B116: =B111 -> 4 | C116: Завтрак 2 | D116: гор.блюдо | E116: запеканка из творога | F116: 75 | G116: 5,8 | H116: 6,83 | I116: 15.042 | J116: 112.104 | K116: 469 | L116: 30,946
D117: гор.напиток | E117: чай с сахаром | F117: 200 | G117: 0 | H117: 0 | I117: 8 | J117: 32 | K117: 943 | L117: 1,36
D118: хлеб | E118: хлеб пшеничный | F118: 40 | G118: 3,04 | H118: 0.32 | I118: 19.68 | J118: 94 | L118: 2.48
D119: итого | F119: =F118+F117+F116 -> 315 | G119: =G118+G117+G116 -> 8.84 | H119: 7.15 | I119: 42.722 | J119: 238.104 | L119: 34.786
A120: =A111 -> 2 | B120: =B111 -> 4 | C120: Итого за день: | F120: =F119+F115 -> 830 | G120: =G115+G119 -> 25.31 | H120: =H115+H119 -> 22.03 | I120: =I115+I119 -> 112.324 | J120: =J115+J119 -> 586.424 | L120: =L115+L119 -> 81.94
A121: 2 | B121: 5 | C121: Завтрак | D121: закуска | E121: Салат из моркови | F121: 60 | G121: 0.749 | H121: 2.053 | I121: 7.474 | J121: 75.11 | K121: 42 | L121: 6.58
D122: 2 блюдо | E122: Тефтели с мясом и рисом с соусом | F122: 90 | G122: 12,284 | H122: 13,56 | I122: 17,22 | J122: 165,608 | K122: 462/759 | L122: 30,25
D123: гарнир | E123: Картофельное пюре со слив масле | F123: 155 | G123: 3.424 | H123: 5,092 | I123: 25,963 | J123: 148,374 | K123: 299 | L123: 14,50
D124: гор.напиток | E124: чай с сахаром | F124: 200 | G124: 0 | H124: 0 | I124: 8 | J124: 32 | K124: 943 | L124: 1,36
D125: хлеб черн. | E125: хлеб сельский | F125: 40 | G125: 1,32 | H125: 0,48 | I125: 19,16 | J125: 94,8 | L125: 2,48
D127: итого | F127: =F125+F124+F123+F121+F122 -> 545 | G127: =G125+G124+G123+G121+G122 -> 17.777 | H127: 21.185 | I127: 77.817 | J127: 515.892 | L127: 55.168
A128: =A121 -> 2 | B128: =B121 -> 5 | C128: Завтрак 2 | D128: гор.блюдо | E128: Каша вязкая молочная из пшеничный крупы со слив маслом | F128: 130 | G128: 5,285 | H128: 4,485 | I128: 27,637 | J128: 132,244 | K128: 384 | L128: 8,52
D129: гор.напиток | E129: чай с сахаром | F129: 200 | G129: 0 | H129: 0 | I129: 8 | J129: 32 | K129: 943 | L129: 1,36
D130: хлеб | E130: Хлеб пшеничный | F130: 40 | G130: 3.04 | H130: 0,32 | I130: 19,68 | J130: 94 | L130: 2,48
D132: итого | F132: =F128+F129+F130 -> 370 | G132: =G128+G129+G130 -> 45390.285 | H132: 4.805 | I132: 55.317 | J132: 258.244 | L132: 12.36
A133: =A121 -> 2 | B133: =B121 -> 5 | C133: Итого за день: | F133: =F132+F127 -> 915 | G133: =G132+G127 -> 45408.062 | H133: 25.99 | I133: 133.134 | J133: 774.136 | L133: 67.528
A134: 2 | B134: 6 | C134: Завтрак | D134: фрукты | E134: Апельсин | F134: 85 | G134: 0.765 | H134: 0.17 | I134: 6.885 | J134: 36.55 | L134: 16.58
D135: 1 блюдо | E135: Макаронник с мясом | F135: 132 | G135: 15.73 | H135: 17.97 | I135: 38.6 | J135: 382.6 | K135: 437 | L135: 42.87
D136: сладкое | E136: чай с сахаром | F136: 200 | G136: 0 | H136: 0 | I136: 8 | J136: 32 | K136: 943 | L136: 1.36
D137: хлеб | E137: Хлеб пшеничный | F137: 40 | G137: 3.04 | H137: 0.32 | I137: 19.68 | J137: 94 | L137: 2.48
D139: итого | F139: =SUM(F134:F138) -> 457 | G139: =SUM(G134:G138) -> 19.535 | H139: =SUM(H134:H138) -> 18.46 | I139: =SUM(I134:I138) -> 73.165 | J139: =SUM(J134:J138) -> 545.15 | L139: =SUM(L134:L138) -> 63.282
A140: =A134 -> 2 | B140: 6 | C140: Завтрак 2
D149: итого | F149: =SUM(F140:F148) -> 0 | G149: =SUM(G140:G148) -> 0 | H149: 0 | I149: 0 | J149: 0 | L149: =SUM(L140:L148) -> 0
A150: =A134 -> 2 | B150: =B134 -> 6 | C150: Итого за день: | F150: =F139+F149 -> 457 | G150: =G139+G149 -> 19.535 | H150: =H139+H149 -> 18.46 | I150: =I139+I149 -> 73.165 | J150: =J139+J149 -> 545.15 | L150: =L139+L149 -> 63.282
C151: Среднее значение за период: | F151: =(F17+F28+F39+F49+F60+F90+F100+F110+F120+F133)/(IF(F17=0,0,1)+IF(F28=0,0,1)+IF(F39=0,0,1)+IF(F49=0,0,1)+IF(F60=0,0,1)+IF(F90=0,0,1)+IF(F100=0,0,1)+IF(F110=0,0,1)+IF(F120=0,0,1)+IF(F133=0,0,1)) -> 893 | G151: =(G17+G28+G39+G49+G60+G90+G100+G110+G120+G133)/(IF(G17=0,0,1)+IF(G28=0,0,1)+IF(G39=0,0,1)+IF(G49=0,0,1)+IF(G60=0,0,1)+IF(G90=0,0,1)+IF(G100=0,0,1)+IF(G110=0,0,1)+IF(G120=0,0,1)+IF(G133=0,0,1)) -> 4561.7362 | H151: =(H17+H28+H39+H49+H60+H90+H100+H110+H120+H133)/(IF(H17=0,0,1)+IF(H28=0,0,1)+IF(H39=0,0,1)+IF(H49=0,0,1)+IF(H60=0,0,1)+IF(H90=0,0,1)+IF(H100=0,0,1)+IF(H110=0,0,1)+IF(H120=0,0,1)+IF(H133=0,0,1)) -> 24.0601 | I151: =(I17+I28+I39+I49+I60+I90+I100+I110+I120+I133)/(IF(I17=0,0,1)+IF(I28=0,0,1)+IF(I39=0,0,1)+IF(I49=0,0,1)+IF(I60=0,0,1)+IF(I90=0,0,1)+IF(I100=0,0,1)+IF(I110=0,0,1)+IF(I120=0,0,1)+IF(I133=0,0,1)) -> 104.944 | J151: =(J17+J28+J39+J49+J60+J90+J100+J110+J120+J133)/(IF(J17=0,0,1)+IF(J28=0,0,1)+IF(J39=0,0,1)+IF(J49=0,0,1)+IF(J60=0,0,1)+IF(J90=0,0,1)+IF(J100=0,0,1)+IF(J110=0,0,1)+IF(J120=0,0,1)+IF(J133=0,0,1)) -> 695.8799 | L151: =(L17+L28+L39+L49+L60+L90+L100+L110+L120+L133)/(IF(L17=0,0,1)+IF(L28=0,0,1)+IF(L39=0,0,1)+IF(L49=0,0,1)+IF(L60=0,0,1)+IF(L90=0,0,1)+IF(L100=0,0,1)+IF(L110=0,0,1)+IF(L120=0,0,1)+IF(L133=0,0,1)) -> 73.5911
